Workbook

Sheet MSU
B1: Simo Vanhala | E1: 18.5.1979 Hamina
B2: SUPERPESIS | E2: Runkosarja | I2: Kärkilyönnit (KL), pesänvälit | P2: Runkosarja TOP-30 | U2: Ylempi loppusarja | AB2: Ylempi loppusarja TOP-10 | AG2: Play off, voitot, voittoprosentti | AL2: Arvo-ottelut | AO2: Mitalit
B3: Vuosi | C3: Sija | D3: Seura | E3: OTT | F3: KUN | G3: LÖI | H3: TOI | I3: KL | J3: 0 > 1 | K3: 1 > 2 | L3: 2 > 3 | M3: 3 > k | N3: KL-% | P3: LÖI | Q3: TOI | R3: L+T | S3: KL | U3: OTT | V3: KUN | W3: LÖI | X3: TOI | Y3: KL | Z3: KL-% | AB3: LÖI | AC3: TOI | AD3: L+T | AE3: KL | AG3: Puolivälierät | AH3: Välierät | AI3: Pronssi | AJ3: Finaalit | AL3: IL | AM3: LL | AN3: hSM | AO3: K | AP3: H | AQ3: P
B4: 1998 | C4: 4. | D4: IPV | F4: ykköspesis | AA4: 0
B5: 1999 | AA5: 0
B6: 2000
B7: 2001 | C7: 1. | D7: SuPo | F7: suomensarja | AA7: 0
B8: 2002 | C8: 13. | D8: SuPo | F8: ykköspesis | AA8: 0
B9: 2003 | C9: 13. | D9: SuPo | F9: ykköspesis | AA9: 66
B10: 2004 | C10: 1. | D10: HaPe | F10: suomensarja
B11: 2005 | C11: 13. | D11: HaPe | F11: ykköspesis
B12: 2006 | C12: 12. | D12: HaPe | F12: ykköspesis
B13: 2007 | C13: 13. | D13: HaPe | F13: ykköspesis
B14: 2007 | C14: 9. | D14: KPL | E14: 8 | F14: 0 | G14: 2 | H14: 0 | I14: 15 | J14: 0 | K14: 2 | L14: 11 | M14: 2 | N14: 31.3 % | O14: =PRODUCT(I14/N14) -> 47.92332268 | AA14: 0
B15: 2008 | C15: 6. | D15: HP | F15: suomensarja | O15: 0 | AA15: 40
B16: **** | O16: 0 | AA16: 74
B17: 2017 | C17: 1. | D17: HP | F17: ykköspesis | O17: 0 | AA17: 85
B18: 2018 | C18: 13. | D18: HP | E18: 24 | F18: 1 | G18: 32 | H18: 2 | I18: 62 | J18: 3 | K18: 5 | L18: 21 | M18: 33 | N18: 42.2 % | O18: =PRODUCT(I18/N18) -> 146.9194313 | P18: 30. | U18: 4 | V18: 0 | W18: 5 | X18: 0 | Y18: 12 | Z18: 50.0 % | AA18: 24
B19: Yhteensä | E19: =SUM(E5:E18) -> 32 | F19: 1 | G19: 34 | H19: 2 | I19: 77 | J19: 3 | K19: 7 | L19: 32 | M19: 35 | N19: =PRODUCT(I19/O19) -> 39.5 % | O19: =SUM(O14:O18) -> 194.842754 | P19: 0-0-0 | Q19: 0-0-0 | R19: 0-0-0 | S19: 0-0-0 | U19: =SUM(U4:U18) -> 4 | V19: =SUM(V4:V18) -> 0 | W19: =SUM(W4:W18) -> 5 | X19: =SUM(X4:X18) -> 0 | Y19: =SUM(Y4:Y18) -> 12 | Z19: 50.0 % | AA19: =SUM(AA3:AA18) -> 289 | AB19: 0-0-0 | AC19: 0-0-0 | AD19: 0-0-0 | AE19: 0-0-0 | AG19: 0/0 | AH19: 0/0 | AI19: 0/0 | AJ19: 0/0 | AL19: =SUM(AL4:AL18) -> 0 | AM19: 0 | AN19: 0 | AO19: 0 | AP19: 0 | AQ19: 0
AG20: 0.0 % | AH20: 0.0 % | AI20: 0.0 % | AJ20: 0.0 %
B21: Pesispörssi | D21: =SUM(F19:H19)+((I19-F19-G19)/3)+(E19/3)+(AL19*25)+(AM19*25)+(AN19*10)+(AO19*25)+(AP19*20)+(AQ19*15) -> 61.7
B23: URA SUPERISSA | E23: OTT | F23: KUN | G23: LÖI | H23: TOI | I23: KL | K23: ka/L | L23: ka/T | M23: ka/KL | N23: KL-% | P23: ENSIMMÄISET RUNKOSARJASSA
B24: Runkosarja | E24: =PRODUCT(E19) -> 32 | F24: =PRODUCT(F19) -> 1 | G24: =PRODUCT(G19) -> 34 | H24: =PRODUCT(H19) -> 2 | I24: =PRODUCT(I19) -> 77 | K24: =PRODUCT((F24+G24)/E24) -> 1.09 | L24: =PRODUCT(H24/E24) -> 0.06 | M24: =PRODUCT(I24/E24) -> 2.41 | N24: =PRODUCT(N19) -> 39.5 % | O24: =PRODUCT(O19) -> 194.842754 | P24: Ottelu | R24: 10.05. 2007 SoJy - KPL 2-0 (3-0, 2-1) | AB24: 1. ottelu | AD24: 27 v 11 kk 22 pv
B25: Ylempi loppusarja | P25: Lyöty | R25: 17.05. 2007 KPL - Kiri 0-2 (1-2, 2-3) | AB25: 2. ottelu | AD25: 27 v 11 kk 29 pv
B26: Alempi loppusarja | E26: 4 | F26: 0 | G26: 5 | H26: 0 | I26: 12 | K26: =PRODUCT((F26+G26)/E26) -> 1.25 | L26: =PRODUCT(H26/E26) -> 0.00 | M26: =PRODUCT(I26/E26) -> 3.00 | N26: 50.0 % | O26: 24 | P26: Tuotu | R26: 14.08. 2018 Lippo Pesis - HP 2-1 (5-7, 8-2, 4-0) | AB26: 2. ottelu | AD26: 39 v 2 kk 27 pv
B27: KAIKKI | E27: =SUM(E24:E26) -> 36 | F27: =SUM(F24:F26) -> 1 | G27: =SUM(G24:G26) -> 39 | H27: =SUM(H24:H26) -> 2 | I27: =SUM(I24:I26) -> 89 | K27: =PRODUCT((F27+G27)/E27) -> 1.11 | L27: =PRODUCT(H27/E27) -> 0.06 | M27: =PRODUCT(I27/E27) -> 2.47 | N27: =PRODUCT(I27/O27) -> 40.7 % | O27: =SUM(O24:O26) -> 218.842754 | P27: Kunnari | R27: 16.08. 2018 HP - KiPa 1-2 (5-6, 4-3, 0-1) | AB27: 32. ottelu | AD27: 39 v 2 kk 29 pv
B29: Seurat | D29: SuPo = Summan Ponnistus (1906), kasvattajaseura
D30: IPV = Imatran Pallo-Veikot (1955)
D31: HaPe = Hamina Pesis (2003)
D32: HP = Haminan Palloilijat (1928)
D33: KPL = Kouvolan Pallonlyöjät (1931)

Sheet MYP, MSS
B1: Simo Vanhala | E1: 18.5.1979 Hamina
B2: YKKÖSPESIS | E2: Runkosarja | L2: Runkosarja TOP-10 | Q2: Jatkosarjat | X2: SUOMENSARJA | AA2: Runkosarja | AH2: Runkosarja TOP-10 | AM2: Jatkosarjat
B3: Vuosi | C3: Sija | D3: Seura | E3: OTT | F3: KUN | G3: LÖI | H3: TOI | I3: KL | J3: KL-% | L3: LÖI | M3: TOI | N3: L+T | O3: KL | Q3: OTT | R3: KUN | S3: LÖI | T3: TOI | U3: KL | V3: KL-% | X3: Vuosi | Y3: Sija | Z3: Seura | AA3: OTT | AB3: KUN | AC3: LÖI | AD3: TOI | AE3: KL | AF3: KL-% | AH3: LÖI | AI3: TOI | AJ3: L+T | AK3: KL | AM3: OTT | AN3: KUN | AO3: LÖI | AP3: TOI | AQ3: KL | AR3: KL-%
B4: 1998 | C4: 4. | D4: IPV | E4: 24 | F4: 2 | G4: 16 | H4: 11 | I4: 86
X7: 2001 | Y7: 1. | Z7: SuPo | AA7: 18 | AB7: 1 | AC7: 18 | AD7: 18 | AE7: 80 | AF7: 60.2 % | AG7: 133 | AM7: 7 | AN7: 1 | AO7: 11 | AP7: 8 | AQ7: 44 | AR7: 75.9 % | AS7: 58
B8: 2002 | C8: 13. | D8: SuPo | E8: 22 | F8: 0 | G8: 12 | H8: 6 | I8: 83 | J8: 51.9 % | K8: 160 | Q8: 3 | R8: 0 | S8: 3 | T8: 0 | U8: 7 | V8: 38.9 % | W8: 18
B9: 2003 | C9: 13. | D9: SuPo | E9: 19 | F9: 0 | G9: 8 | H9: 1 | I9: 74 | J9: 60.7 % | K9: 122 | Q9: 2 | R9: 0 | S9: 1 | T9: 0 | U9: 9 | V9: 56.3 % | W9: 16
X10: 2004 | Y10: 1. | Z10: HaPe | AA10: 15 | AB10: 1 | AC10: 43 | AD10: 8 | AE10: 80 | AF10: 58.4 % | AG10: 137 | AH10: 2. | AJ10: 4. | AK10: 8. | AM10: 4 | AN10: 1 | AO10: 10 | AP10: 1 | AQ10: 20 | AR10: 51.3 % | AS10: 39
B11: 2005 | C11: 13. | D11: HaPe | E11: 22 | F11: 4 | G11: 34 | H11: 11 | I11: 98 | J11: 58.0 % | K11: 169 | Q11: 5 | R11: 2 | S11: 13 | T11: 5 | U11: 27 | V11: 58.7 % | W11: 46
B12: 2006 | C12: 12. | D12: HaPe | E12: 22 | F12: 4 | G12: 51 | H12: 8 | I12: 96 | J12: 58.9 % | K12: 163 | L12: 4. | N12: 7. | Q12: 3 | R12: 1 | S12: 10 | T12: 2 | U12: 15 | V12: 68.2 % | W12: 22
B13: 2007 | C13: 13. | D13: HaPe | E13: 10 | F13: 2 | G13: 13 | H13: 6 | I13: 46 | J13: 63.0 % | K13: 73 | Q13: 2 | R13: 0 | S13: 2 | T13: 0 | U13: 10 | V13: 76.9 % | W13: 13
X14: 2008 | Y14: 6. | Z14: HP | AA14: 11 | AB14: 1 | AC14: 22 | AD14: 7 | AE14: 48 | AF14: 58.5 % | AG14: 82 | AH14: 10.
B16: 2017 | C16: 1. | D16: HP | E16: 19 | F16: 2 | G16: 39 | H16: 5 | I16: 82 | J16: 58.2 % | K16: 141
B17: YHTEENSÄ | E17: =SUM(E4:E16) -> 138 | F17: =SUM(F4:F16) -> 14 | G17: =SUM(G4:G16) -> 173 | H17: =SUM(H4:H16) -> 48 | I17: =SUM(I4:I16) -> 565 | J17: 0.0 % | K17: =SUM(K4:K16) -> 828 | Q17: =SUM(Q4:Q16) -> 15 | R17: =SUM(R4:R16) -> 3 | S17: =SUM(S4:S16) -> 29 | T17: =SUM(T4:T16) -> 7 | U17: =SUM(U4:U16) -> 68 | V17: =PRODUCT(U17/W17) -> 59.1 % | W17: =SUM(W4:W16) -> 115 | X17: YHTEENSÄ | AA17: =SUM(AA4:AA16) -> 44 | AB17: =SUM(AB4:AB16) -> 3 | AC17: =SUM(AC4:AC16) -> 83 | AD17: =SUM(AD4:AD16) -> 33 | AE17: =SUM(AE4:AE16) -> 208 | AF17: =PRODUCT(AE17/AG17) -> 59.1 % | AG17: =SUM(AG4:AG16) -> 352 | AM17: =SUM(AM4:AM16) -> 11 | AN17: =SUM(AN4:AN16) -> 2 | AO17: =SUM(AO4:AO16) -> 21 | AP17: =SUM(AP4:AP16) -> 9 | AQ17: =SUM(AQ4:AQ16) -> 64 | AR17: =PRODUCT(AQ17/AS17) -> 66.0 % | AS17: =SUM(AS4:AS16) -> 97
B19: KAIKKI OTTELUT | E19: OTT | F19: KUN | G19: LÖI | H19: TOI | I19: KL | J19: KL-% | L19: ka/L | M19: ka/T | N19: ka/l+t | O19: ka/kl | R19: Seurat | T19: SuPo = Summan Ponnistus (1906), kasvattajaseura
B20: SUPERPESIS | E20: 36 | F20: 1 | G20: 39 | H20: 2 | I20: 89 | J20: 52.1 % | K20: =PRODUCT(I20/J20) -> 170.8253359 | L20: =PRODUCT((F20+G20)/E20) -> 1.11 | M20: =PRODUCT(H20/E20) -> 0.06 | N20: =PRODUCT((F20+G20+H20)/E20) -> 1.17 | O20: =PRODUCT(I20/E20) -> 2.47 | T20: IPV = Imatran Pallo-Veikot (1955)
B21: YKKÖSPESIS | E21: =PRODUCT(E17+Q17) -> 153 | F21: =PRODUCT(F17+R17) -> 17 | G21: =PRODUCT(G17+S17) -> 202 | H21: =PRODUCT(H17+T17) -> 55 | I21: =PRODUCT(I17+U17) -> 633 | J21: =PRODUCT(I21/K21) -> 67.1 % | K21: =PRODUCT(K17+W17) -> 943 | L21: =PRODUCT((F21+G21)/E21) -> 1.43 | M21: =PRODUCT(H21/E21) -> 0.36 | N21: =PRODUCT((F21+G21+H21)/E21) -> 1.79 | O21: =PRODUCT(I21/E21) -> 4.14 | T21: HaPe = Hamina Pesis (2003)
B22: SUOMENSARJA | E22: =PRODUCT(AA17+AM17) -> 55 | F22: =PRODUCT(AB17+AN17) -> 5 | G22: =PRODUCT(AC17+AO17) -> 104 | H22: =PRODUCT(AD17+AP17) -> 42 | I22: =PRODUCT(AE17+AQ17) -> 272 | J22: =PRODUCT(I22/K22) -> 60.6 % | K22: =PRODUCT(AG17+AS17) -> 449 | L22: =PRODUCT((F22+G22)/E22) -> 1.98 | M22: =PRODUCT(H22/E22) -> 0.76 | N22: =PRODUCT((F22+G22+H22)/E22) -> 2.75 | O22: =PRODUCT(I22/E22) -> 4.95 | T22: HP = Haminan Palloilijat (1928)
B23: YHTEENSÄ | E23: =SUM(E20:E22) -> 244 | F23: =SUM(F20:F22) -> 23 | G23: 345 | H23: 99 | I23: 994 | J23: =PRODUCT(I23/K23) -> 63.6 % | K23: =SUM(K20:K22) -> 1562.825336 | L23: =PRODUCT((F23+G23)/E23) -> 1.51 | M23: =PRODUCT(H23/E23) -> 0.41 | N23: =PRODUCT((F23+G23+H23)/E23) -> 1.91 | O23: =PRODUCT(I23/E23) -> 4.07 | T23: KPL = Kouvolan Pallonlyöjät (1931)

Sheet Arvo-ottelut
B1: ITÄ - LÄNSI - KORTTI
B2: Simo Vanhala | C2: 18.5.1979 Hamina
B3: C - POJAT | C3: Itä - Länsi, tulos | D3: Joukkue | E3: Seura | G3: V | H3: T | I3: H | J3: Up. | K3: Lj. | L3: Palk. | M3: O | N3: K | O3: L | P3: T | Q3: KL | R3: 1 | S3: 2 | T3: 3 | U3: k | V3: KL-% | W3: Pelinjohtaja | X3: Yleisöä
B4: 29.07. 1993 Rovaniemi | C4: 12-17 | D4: Itä | I4: 1 | M4: 1 | W4: Kari-Pekka Heinonen | X4: 875
B5: 26.07. 1994 Tampere | C5: 13-23 | D5: Itä | E5: SuPo | I5: 1 | M5: 1 | O5: 2 | P5: 1 | W5: Kari Ekroth | X5: 300

Sheet Kärkilyönnit
B1: KÄRKILYÖNNIT RUNKOSARJASSA | V1: VUOSITTAISET SIJOITUKSET TOP - 30
G2: 0 > 1 | J2: 1 > 2 | M2: 2 > 3 | P2: 3 > k | S2: Yhteensä
B3: Vuosi | C3: Sija | D3: Seura | E3: OTT | F3: KL | G3: YHT | H3: % | I3: KL | J3: YHT | K3: % | L3: KL | M3: YHT | N3: % | O3: KL | P3: YHT | Q3: % | R3: KL | S3: YHT | T3: % | V3: Vuosi | W3: Sija | X3: Seura | Y3: 0 > 1 | Z3: 1 > 2 | AA3: 2 > 3 | AB3: 3 > k | AC3: KL
B4: 2007 | C4: 9. | D4: KPL | E4: 8 | F4: 0 | G4: 3 | H4: 0.0 % | I4: 2 | J4: 7 | K4: 28.6 % | L4: 11 | M4: 28 | N4: 39.3 % | O4: 2 | P4: 10 | Q4: 20.0 % | R4: 15 | S4: 48 | T4: 31.3 % | V4: 2007 | W4: 9. | X4: KPL
B5: **** | V5: ****
B6: 2018 | C6: 13. | D6: HP | E6: 24 | F6: 3 | G6: 9 | H6: 33.3 % | I6: 5 | J6: 17 | K6: 29.4 % | L6: 22 | M6: 43 | N6: 51.2 % | O6: 33 | P6: 79 | Q6: 41.8 % | R6: 62 | S6: 147 | T6: 42.2 % | V6: 2018 | W6: 13. | X6: HP | AB6: 30.
B7: Yhteensä | E7: =SUM(E4:E6) -> 32 | F7: =SUM(F4:F6) -> 3 | G7: =SUM(G4:G6) -> 12 | H7: =PRODUCT(F7/G7) -> 25.0 % | I7: =SUM(I4:I6) -> 7 | J7: =SUM(J4:J6) -> 24 | K7: =PRODUCT(I7/J7) -> 29.2 % | L7: =SUM(L4:L6) -> 33 | M7: =SUM(M4:M6) -> 71 | N7: =PRODUCT(L7/M7) -> 46.5 % | O7: =SUM(O4:O6) -> 35 | P7: =SUM(P4:P6) -> 89 | Q7: =PRODUCT(O7/P7) -> 39.3 % | R7: =SUM(R4:R6) -> 77 | S7: =SUM(S4:S6) -> 195 | T7: =PRODUCT(R7/S7) -> 39.5 %
